{"text_format":"1","workbook":"xlsx","n_sheets":3,"sheets":["Hoja1","Hoja2","Hoja3"],"not_rendered":{"charts":0,"images":0,"macros":1,"external_links":0,"defined_names":0,"comments":0,"pivot_tables":0},"unopened":[],"bounds":{"document_bytes":16777216,"sheet_cells":100000,"rows_first":2000,"rows_last":500,"rows_between":2000,"halvings":0,"cell_chars":16384,"cell_head_chars":4096},"cells_cut":0,"cells_raw":0,"read":"whole","date_system":"1900"}

{"sheet":"Hoja1","index":0,"n_rows":17,"n_cols":10,"rows_kept":17,"cut":false,"hidden":false,"merged":[[5,1,5,9],[6,1,6,2]]}
[]
[]
[null,"El siguiente ejemplo tiene como objetivo hacer el uso de la funcion CountBlank o Contar.Blanco "]
[null,"mediante un ejemplo de control de asistecia de alumnos."]
[]
[null,"Asistencia de Alumnos"]
[null,null,null,"Lunes 01","Martes 02","Miercoles 03","Jueves 04","Viernes 05","Asistencia","Nota"]
[null,"1. Juan Alvarez",null,"x",null,"x",null,"x",{"$f":"5-COUNTBLANK(D8:H8)","v":3},{"$f":"I8*4","v":12}]
[null,"2. Manuel Begazo",null,null,"x",null,null,null,{"$f":"5-COUNTBLANK(D9:H9)","v":1},{"$f":"I9*4","v":4}]
[null,"3. Dorotea Caceres",null,"x","x",null,"x","x",4,16]
[null,"4. Javier Enriquez",null,null,null,"x",null,null,1,4]
[null,"5. Arturo Fargas",null,"x","x","x",null,null,3,12]
[null,"6. Gabriel Hilton",null,null,"x","x","x","x",4,16]
[null,"7. Hortencio Llerena",null,null,"x","x",null,null,2,8]
[null,"8. Ines Pari",null,"x","x","x","x","x",5,20]
[null,"9. Samuel Tejada",null,null,"x",null,"x",null,2,8]
[null,"10. Abigail Zapata",null,"x",null,"x",null,"x",3,12]

{"sheet":"Hoja2","index":1,"n_rows":0,"n_cols":0,"rows_kept":0,"cut":false,"hidden":false,"merged":[]}

{"sheet":"Hoja3","index":2,"n_rows":0,"n_cols":0,"rows_kept":0,"cut":false,"hidden":false,"merged":[]}